[Event "EIWCC 2018"]
[Site "Vysoke Tatry"]
[Date "2018.04.10"]
[Round "3"]
[White "Gaponenko, Inna"]
[Black "Gvanceladze, Anna"]
[Result "1/2-1/2"]
[ECO "B12"]
[WhiteElo "2406"]
[BlackElo "2302"]
[Annotator "NA"]
[PlyCount "80"]
[EventDate "2018.??.??"]
[EventType "swiss"]
[EventCountry "SVK"]
[SourceTitle "playchess.com"]
[Source "ChessBase"]
[SourceQuality "1"]
[TimeControl "40/5400+30:1800+30"]

1. e4 {[%emt 0:00:00]} c6 {[%emt 0:00:05]} 2. d4 {[%emt 0:00:00]} d5 {[%emt 0:00:05]} 3. e5 {[%emt 0:00:00]} c5 {[%emt 0:00:05]} 4. dxc5 {[%emt 0:00:00]} Nc6 {[%emt 0:00:03]} 5. a3 {[%emt 0:00:06] LiveBook: 72 Games B12: Caro-Kann: Advance Variation} Nxe5 {[%emt 0:00:07]} 6. Bb5+ {[%emt 0:00:11]} (6. b4 Nf6 7. Bb2 Nc6 8. Nf3 g6 9. Nc3 d4 10. Nb5 e5 11. Qe2 Bg4 12. O-O-O Bh6+ {1-0 (48) Nepomniachtchi,I (2751)-Navara,D (2737) Saint Louis 2017}) 6... Nc6 {[%emt 0:00:05]} 7. b4 {[%emt 0:00:30]} Nf6 {[%emt 0:00:24]} 8. Bb2 {[%emt 0:00:18]} g6 {[%emt 0:00:25]} 9. c4 {[%emt 0:02:45]} Be6 {[%emt 0:06:33]} 10. Nf3 {[%emt 0:00:51]} dxc4 {[%emt 0:05:39]} 11. Qxd8+ {[%emt 0:04:09]} Rxd8 {[%emt 0:00:12]} 12. Ne5 {[%emt 0:05:16]} Rc8 {[%emt 0:02:32]} 13. Nd2 $146 {[%emt 0:14:30]} Bg7 {[%emt 0:03:21]} 14. Nxc6 {[%emt 0:09:14]} bxc6 {[%emt 0:00:08]} 15. Bxc4 {[%emt 0:00:04]} Bxc4 {[%emt 0:15:10]} 16. Nxc4 {[%emt 0:00:18]} O-O {[%emt 0:00:07]} 17. Bxf6 {[%emt 0:06:00]} Bxf6 {[%emt 0:00:16]} 18. O-O-O {[%emt 0:00:05]} Rc7 {[%emt 0:04:52]} 19. Rd3 {[%emt 0:03:08]} Rfc8 {[%emt 0:00:58]} 20. Rhd1 {[%emt 0:00:43]} e6 $16 {[%emt 0:00:46]} 21. Rd7 {[%emt 0:36:05]} Kf8 {[%emt 0:02:47]} 22. Kc2 {[%emt 0:01:00]} Ke8 {[%emt 0:03:18]} 23. Rxc7 {[%emt 0:00:53]} Rxc7 {[%emt 0:00:05]} 24. Na5 {[%emt 0:00:14]} Be7 {[%emt 0:01:26]} 25. Rd3 {[%emt 0:00:23]} h5 {[%emt 0:02:46]} 26. Kc3 {[%emt 0:04:02]} f6 {[%emt 0:08:46]} 27. Kc4 {[%emt 0:02:30]} e5 {[%emt 0:02:37]} 28. a4 {[%emt 0:01:23]} Kf7 {[%emt 0:01:15]} 29. Nb3 {[%emt 0:01:23]} a6 {[%emt 0:03:02]} 30. b5 {[%emt 0:01:30]} axb5+ {[%emt 0:00:18]} 31. axb5 {[%emt 0:00:02]} cxb5+ {[%emt 0:00:09]} 32. Kxb5 {[%emt 0:00:02]} Rb7+ {[%emt 0:00:29]} 33. Kc4 {[%emt 0:05:30]} Rc7 {[%emt 0:03:08]} 34. Kb5 {[%emt 0:01:16]} Rb7+ {[%emt 0:00:06]} 35. Kc4 {[%emt 0:01:01]} Rc7 {[%emt 0:00:05]} 36. f3 {[%emt 0:00:15]} Ke6 {[%emt 0:04:22]} 37. Kb5 {[%emt 0:00:04]} Rb7+ {[%emt 0:00:10]} 38. Kc4 {[%emt 0:00:53]} Rc7 {[%emt 0:00:05]} 39. Kb5 {[%emt 0:00:17]} Rb7+ {[%emt 0:00:20]} 40. Kc4 {[%emt 0:00:00] Kd5+} Rc7 1/2-1/2

[Event "EIWCC 2018"]
[Site "Vysoke Tatry"]
[Date "2018.04.10"]
[Round "3"]
[White "Mkrtchian, Lilit"]
[Black "Zherebtsova, Alexandra"]
[Result "1/2-1/2"]
[ECO "A06"]
[WhiteElo "2403"]
[BlackElo "2202"]
[Annotator "NA"]
[PlyCount "89"]
[EventDate "2018.??.??"]
[EventType "swiss"]
[EventCountry "SVK"]
[SourceTitle "playchess.com"]
[Source "ChessBase"]
[SourceQuality "1"]
[TimeControl "40/5400+30:1800+30"]

1. Nf3 {[%emt 0:00:00]} d5 {[%emt 0:00:09]} 2. g3 {[%emt 0:00:00]} g6 {[%emt 0:00:44]} 3. Bg2 {[%emt 0:02:48]} Bg7 {[%emt 0:00:05]} 4. d4 {[%emt 0:00:06]} Nf6 {[%emt 0:01:34]} 5. c4 {[%emt 0:01:02]} c6 {[%emt 0:02:10]} 6. cxd5 {[%emt 0:00:22]} cxd5 {[%emt 0:00:04]} 7. O-O {[%emt 0:00:40]} Nc6 {[%emt 0:01:32]} 8. Nc3 {[%emt 0:00:59]} Ne4 {[%emt 0:16:50]} 9. e3 {[%emt 0:22:57]} f5 {[%emt 0:11:25]} 10. Ne2 {[%emt 0:16:54]} g5 {[%emt 0:13:25]} 11. b3 $11 {[%emt 0:03:25]} O-O {[%emt 0:05:34]} 12. Bb2 {[%emt 0:01:19]} Qd6 {[%emt 0:09:01]} 13. Ne1 {[%emt 0:00:15]} b6 {[%emt 0:08:11]} 14. Nd3 {[%emt 0:02:27]} Ba6 {[%emt 0:08:19]} 15. f3 {[%emt 0:01:00]} Nf6 {[%emt 0:02:26]} 16. Ne5 {[%emt 0:00:11]} f4 {[%emt 0:06:25]} 17. exf4 {[%emt 0:05:14]} gxf4 {[%emt 0:00:06]} 18. Re1 {[%emt 0:01:26]} fxg3 {[%emt 0:01:04]} 19. hxg3 {[%emt 0:00:45]} Nh5 {[%emt 0:00:57]} 20. f4 {[%emt 0:07:25]} Bxe2 {[%emt 0:07:03]} 21. Qxe2 {[%emt 0:00:15]} Nxg3 {[%emt 0:00:14]} 22. Qb5 {[%emt 0:02:38]} Nxe5 {[%emt 0:00:08]} 23. dxe5 {[%emt 0:05:50]} Qg6 {[%emt 0:00:08]} 24. Qxd5+ {[%emt 0:00:30]} e6 {[%emt 0:00:15]} 25. Qf3 {[%emt 0:00:38]} Rad8 {[%emt 0:02:29]} 26. Ba3 {[%emt 0:04:40]} Rd3 {[%emt 0:01:12]} 27. Qf2 {[%emt 0:02:19]} Rfd8 {[%emt 0:01:13]} 28. Rac1 {[%emt 0:04:02]} Nf5 {[%emt 0:01:00]} 29. Bb4 {[%emt 0:03:40]} Bh6 {[%emt 0:00:17]} 30. Rc4 {[%emt 0:05:30]} a5 {[%emt 0:00:32]} 31. Bd6 {[%emt 0:01:14]} Kh8 {[%emt 0:00:55]} 32. Rec1 {[%emt 0:00:55]} Rg3 {[%emt 0:00:21]} 33. Rc8 {[%emt 0:00:21]} Rg8 {[%emt 0:00:10]} 34. Rxg8+ {[%emt 0:00:22]} Qxg8 {[%emt 0:00:03]} 35. Kh1 {[%emt 0:03:21]} Rg4 {[%emt 0:00:44]} 36. Rc4 {[%emt 0:00:53]} b5 {[%emt 0:00:14]} 37. Rc3 {[%emt 0:01:15]} Bxf4 {[%emt 0:00:30]} 38. Rf3 {[%emt 0:00:42]} Ng3+ {[%emt 0:01:20]} 39. Rxg3 {[%emt 0:00:36]} Bxg3 {[%emt 0:00:35]} 40. Qf6+ {[%emt 0:00:00]} Qg7 {[%emt 0:00:05]} 41. Qd8+ {[%emt 0:00:14]} Qg8 {[%emt 0:00:24]} 42. Qf6+ {[%emt 0:00:51]} Rg7 43. Bf8 Bxe5 44. Bxg7+ Qxg7 45. Qxe6 1/2-1/2

[Event "EIWCC 2018"]
[Site "Vysoke Tatry"]
[Date "2018.04.10"]
[Round "3"]
[White "Arabidze, Meri"]
[Black "Prudnykova, Olga"]
[Result "1-0"]
[ECO "D71"]
[WhiteElo "2393"]
[BlackElo "2281"]
[Annotator "ChessBase"]
[PlyCount "117"]
[EventDate "2018.??.??"]
[EventType "swiss"]
[EventCountry "SVK"]
[SourceTitle "playchess.com"]
[Source "ChessBase"]
[SourceQuality "1"]
[TimeControl "40/5400+30:1800+30"]

1. d4 {[%emt 0:00:00]} Nf6 {[%emt 0:00:06]} 2. c4 {[%emt 0:00:00]} g6 {[%emt 0:00:05]} 3. g3 {[%emt 0:00:00]} Bg7 {[%emt 0:00:15]} 4. Bg2 {[%emt 0:00:00]} d5 {[%emt 0:00:04]} 5. cxd5 {[%emt 0:00:00]} Nxd5 {[%emt 0:00:04]} 6. Nf3 {[%emt 0:00:02]} Nb6 {[%emt 0:01:01]} 7. Nc3 {[%emt 0:00:11]} Nc6 {[%emt 0:00:19]} 8. e3 {[%emt 0:00:12]} O-O {[%emt 0:01:39]} 9. O-O {[%emt 0:00:08]} a5 {[%emt 0:00:40]} 10. Qe2 {[%emt 0:00:21]} Be6 {[%emt 0:01:12]} 11. Nd2 {[%emt 0:00:23]} a4 {[%emt 0:07:29]} 12. Rd1 {[%emt 0:00:09]} Na5 {[%emt 0:24:39]} 13. Nde4 {[%emt 0:05:00]} Qc8 {[%emt 0:09:04]} 14. Nc5 {[%emt 0:03:32]} Bg4 {[%emt 0:01:26]} 15. f3 {[%emt 0:01:26]} Bd7 {[%emt 0:00:07]} 16. Nxd7 {[%emt 0:04:47]} Qxd7 {[%emt 0:00:14]} 17. Ne4 {[%emt 0:00:45]} Nbc4 {[%emt 0:09:55]} 18. f4 {[%emt 0:08:12]} Rfd8 {[%emt 0:06:10]} 19. Nc5 {[%emt 0:08:02]} Qb5 {[%emt 0:00:36]} 20. Qc2 {[%emt 0:03:50]} Nc6 {[%emt 0:10:38]} 21. Nxb7 {[%emt 0:10:54]} Nxd4 {[%emt 0:00:16]} 22. exd4 {[%emt 0:00:21]} Rxd4 {[%emt 0:00:08]} 23. Re1 {[%emt 0:23:45]} c6 {[%emt 0:17:27]} 24. Bf1 {[%emt 0:00:11]} Qb6 {[%emt 0:04:31]} 25. Kh1 {[%emt 0:02:23]} Qxb7 {[%emt 0:02:31]} 26. Bxc4 {[%emt 0:00:28]} c5+ {[%emt 0:00:49]} 27. Kg1 {[%emt 0:00:22]} Qb4 {[%emt 0:00:27]} 28. Re4 {[%emt 0:04:41]} Rad8 {[%emt 0:01:23]} 29. Be3 {[%emt 0:00:39]} Rxe4 {[%emt 0:00:54]} 30. Qxe4 {[%emt 0:00:05]} Bd4 {[%emt 0:00:28]} 31. Bf1 {[%emt 0:05:48]} Qxb2 {[%emt 0:00:04]} 32. Bxd4 {[%emt 0:00:45]} Rxd4 {[%emt 0:00:32]} 33. Qb1 {[%emt 0:04:54]} Qd2 {[%emt 0:00:45]} 34. Qe1 {[%emt 0:01:10]} Qc2 {[%emt 0:00:42]} 35. Rb1 {[%emt 0:04:37]} Re4 {[%emt 0:00:32]} 36. Rb8+ {[%emt 0:00:34]} Kg7 {[%emt 0:00:04]} 37. Qf2 {[%emt 0:00:44]} Qd1 {[%emt 0:00:45]} 38. Qxc5 {[%emt 0:05:03]} Re1 {[%emt 0:00:03]} 39. Qf2 {[%emt 0:00:22]} a3 {[%emt 0:00:23]} 40. Rb3 {[%emt 0:00:00]} Qc1 {[%emt 0:00:53]} 41. Rf3 {[%emt 0:07:17]} Rd1 {[%emt 0:03:21]} 42. Qa7 {[%emt 0:04:13]} e6 {[%emt 0:08:11]} 43. Rf2 {[%emt 0:02:03]} Qc3 {[%emt 0:05:31]} 44. Qa6 {[%emt 0:02:21]} Rb1 {[%emt 0:04:31]} 45. Qe2 {[%emt 0:01:11]} Kg8 {[%emt 0:00:12]} 46. Qf3 {[%emt 0:01:18]} Qc1 {[%emt 0:04:06]} 47. Qd3 {[%emt 0:00:24]} Ra1 {[%emt 0:02:46]} 48. Rc2 {[%emt 0:05:27]} Qe1 {[%emt 0:00:25]} 49. Qd8+ {[%emt 0:00:51]} Kg7 {[%emt 0:00:04]} 50. Qd4+ {[%emt 0:00:07]} f6 {[%emt 0:03:07]} 51. Rf2 {[%emt 0:00:26]} e5 {[%emt 0:01:52]} 52. fxe5 {[%emt 0:01:04]} Qxe5 {[%emt 0:00:41]} 53. Qxe5 {[%emt 0:02:10]} fxe5 {[%emt 0:00:03]} 54. Kg2 {[%emt 0:00:04]} e4 {[%emt 0:00:47]} 55. Bc4 {[%emt 0:00:15]} Rb1 {[%emt 0:00:47]} 56. Bd5 {[%emt 0:00:50]} e3 {[%emt 0:00:49]} 57. Re2 {[%emt 0:00:07]} Rd1 {[%emt 0:01:25]} 58. Bb3 {[%emt 0:00:18]} Rd3 {[%emt 0:00:25]} 59. Kf3 {[%emt 0:00:24]} 1-0

[Event "EIWCC 2018"]
[Site "Vysoke Tatry"]
[Date "2018.04.10"]
[Round "3"]
[White "Fataliyeva, Ulviyya"]
[Black "Sandu, Mihaela"]
[Result "0-1"]
[ECO "B94"]
[WhiteElo "2361"]
[BlackElo "2240"]
[Annotator "NA"]
[PlyCount "86"]
[EventDate "2018.??.??"]
[EventType "swiss"]
[EventCountry "SVK"]
[SourceTitle "playchess.com"]
[Source "ChessBase"]
[SourceQuality "1"]
[TimeControl "40/5400+30:1800+30"]

1. e4 {[%emt 0:00:00]} c5 {[%emt 0:00:06]} 2. Nf3 {[%emt 0:00:00]} d6 {[%emt 0:00:17]} 3. d4 {[%emt 0:00:00]} cxd4 {[%emt 0:00:05]} 4. Nxd4 {[%emt 0:00:00]} Nf6 {[%emt 0:00:09]} 5. Nc3 {[%emt 0:00:00]} a6 {[%emt 0:00:07]} 6. Bg5 {[%emt 0:00:00]} Nbd7 {[%emt 0:00:36]} 7. f4 {[%emt 0:01:28]} Qc7 {[%emt 0:00:44]} 8. Qf3 {[%emt 0:01:37]} h6 {[%emt 0:00:41]} 9. Bh4 {[%emt 0:01:39]} g5 {[%emt 0:01:28]} 10. fxg5 {[%emt 0:00:33]} hxg5 {[%emt 0:00:05]} 11. Bxg5 {[%emt 0:02:15]} Qc5 {[%emt 0:00:54]} 12. Nf5 {[%emt 0:10:38]} e6 {[%emt 0:03:03]} 13. Bxf6 {[%emt 0:11:06]} Nxf6 {[%emt 0:00:11]} 14. Ng3 {[%emt 0:12:09]} Nd7 {[%emt 0:10:41]} 15. Be2 {[%emt 0:09:01]} Ne5 {[%emt 0:21:46]} 16. Qf2 {[%emt 0:05:21]} Qxf2+ {[%emt 0:09:53]} 17. Kxf2 {[%emt 0:00:03]} b5 {[%emt 0:00:13]} 18. a4 {[%emt 0:12:06]} b4 {[%emt 0:00:35]} 19. Na2 {[%emt 0:00:05]} d5 {[%emt 0:02:49]} 20. exd5 {[%emt 0:10:05]} Bb7 {[%emt 0:06:05]} 21. c4 {[%emt 0:10:51]} exd5 {[%emt 0:05:25]} 22. Rhe1 {[%emt 0:00:21]} Bc5+ {[%emt 0:00:51]} 23. Kf1 {[%emt 0:00:04]} Kf8 {[%emt 0:02:18]} 24. Bh5 {[%emt 0:07:45]} Nxc4 {[%emt 0:00:56]} 25. Rac1 {[%emt 0:00:24]} Bd6 {[%emt 0:02:47]} 26. Bf3 {[%emt 0:01:52]} Rxh2 {[%emt 0:09:54]} 27. Nf5 {[%emt 0:01:14]} Bc5 {[%emt 0:01:30]} 28. Ke2 {[%emt 0:00:28]} Re8+ {[%emt 0:00:29]} 29. Kd3 {[%emt 0:00:15]} Nxb2+ {[%emt 0:04:45]} 30. Kd2 {[%emt 0:00:13]} Nxa4 {[%emt 0:00:47]} 31. Rxe8+ {[%emt 0:00:46]} Kxe8 {[%emt 0:00:04]} 32. Rxc5 {[%emt 0:01:33]} Nxc5 {[%emt 0:00:17]} 33. Nd6+ {[%emt 0:00:15]} Kd7 {[%emt 0:05:30]} 34. Nxb7 {[%emt 0:00:04]} Nxb7 {[%emt 0:00:16]} 35. Nxb4 {[%emt 0:00:19]} a5 {[%emt 0:02:33]} 36. Nxd5 {[%emt 0:00:05]} Nd6 {[%emt 0:01:52]} 37. Kc3 {[%emt 0:01:02]} Rh4 {[%emt 0:01:35]} 38. Kb3 {[%emt 0:02:31]} Nb5 {[%emt 0:00:30]} 39. Bg4+ {[%emt 0:00:33]} Kd6 {[%emt 0:00:37]} 40. Ne3 {[%emt 0:00:00]} Kc5 {[%emt 0:00:21]} 41. g3 {[%emt 0:04:04]} Rh1 {[%emt 0:02:02]} 42. Kb2 {[%emt 0:05:39]} Rg1 {[%emt 0:00:46]} 43. Nf5 {[%emt 0:00:13]} Nd4 {[%emt 0:00:34]} 0-1

[Event "EIWCC 2018"]
[Site "Vysoke Tatry"]
[Date "2018.04.10"]
[Round "3"]
[White "Mamedjarova, Zeinab"]
[Black "Rodshtein, Tereza"]
[Result "1-0"]
[ECO "D04"]
[WhiteElo "2355"]
[BlackElo "2226"]
[Annotator "NA"]
[PlyCount "45"]
[EventDate "2018.??.??"]
[EventType "swiss"]
[EventCountry "SVK"]
[SourceTitle "playchess.com"]
[Source "ChessBase"]
[SourceQuality "1"]
[TimeControl "40/5400+30:1800+30"]

1. d4 {[%emt 0:00:00]} d5 {[%emt 0:00:08]} 2. Nf3 {[%emt 0:00:00]} Nf6 {[%emt 0:00:49]} 3. e3 {[%emt 0:00:07]} c6 {[%emt 0:03:15]} 4. Bd3 {[%emt 0:01:12]} Bg4 {[%emt 0:00:57]} 5. O-O {[%emt 0:02:04]} e6 {[%emt 0:03:37]} 6. Nbd2 {[%emt 0:00:51]} Bd6 {[%emt 0:01:57]} 7. Re1 {[%emt 0:04:37]} O-O {[%emt 0:01:58]} 8. e4 {[%emt 0:05:36]} dxe4 {[%emt 0:00:19]} 9. Nxe4 {[%emt 0:00:05]} Nxe4 {[%emt 0:00:23]} 10. Bxe4 {[%emt 0:02:14]} Nd7 {[%emt 0:02:11]} 11. c3 {[%emt 0:03:53]} Re8 {[%emt 0:21:00]} 12. h3 {[%emt 0:11:51]} Bh5 {[%emt 0:00:50]} 13. Bd2 {[%emt 0:10:41]} e5 {[%emt 0:03:23]} 14. Qc2 {[%emt 0:11:51]} Bg6 {[%emt 0:02:48]} 15. dxe5 {[%emt 0:10:52]} Nxe5 {[%emt 0:00:51]} 16. Ng5 {[%emt 0:02:16]} Nc4 {[%emt 0:21:48]} 17. Bxg6 {[%emt 0:02:50]} hxg6 {[%emt 0:00:23]} 18. Rxe8+ {[%emt 0:06:26]} Qxe8 {[%emt 0:00:05]} 19. Re1 {[%emt 0:00:46]} Qd7 {[%emt 0:01:13]} 20. Qe4 {[%emt 0:03:25]} Bc5 {[%emt 0:18:43]} 21. Qh4 {[%emt 0:05:14]} Bxf2+ {[%emt 0:00:45]} 22. Kxf2 {[%emt 0:00:08]} Qxd2+ {[%emt 0:00:57]} 23. Re2 {[%emt 0:00:04]} 1-0

[Event "EIWCC 2018"]
[Site "Vysoke Tatry"]
[Date "2018.04.10"]
[Round "3"]
[White "Sliwicka, Alicja"]
[Black "Ptacnikova, Lenka"]
[Result "1/2-1/2"]
[ECO "B42"]
[WhiteElo "2329"]
[BlackElo "2198"]
[Annotator "NA"]
[PlyCount "110"]
[EventDate "2018.??.??"]
[EventType "swiss"]
[EventCountry "SVK"]
[SourceTitle "playchess.com"]
[Source "ChessBase"]
[SourceQuality "1"]
[TimeControl "40/5400+30:1800+30"]

1. e4 {[%emt 0:00:00]} c5 {[%emt 0:00:05]} 2. Nf3 {[%emt 0:00:00]} e6 {[%emt 0:00:09]} 3. d4 {[%emt 0:00:00]} cxd4 {[%emt 0:00:02]} 4. Nxd4 {[%emt 0:00:00]} a6 {[%emt 0:00:09]} 5. Bd3 {[%emt 0:00:07]} Nf6 {[%emt 0:00:25]} 6. O-O {[%emt 0:00:13]} Qc7 {[%emt 0:00:52]} 7. Nc3 {[%emt 0:00:30]} d6 {[%emt 0:01:05]} 8. f4 {[%emt 0:01:13]} Nc6 {[%emt 0:03:02]} 9. Nxc6 {[%emt 0:04:29]} Qxc6 {[%emt 0:04:38]} 10. Qe2 {[%emt 0:04:57]} Be7 {[%emt 0:06:15]} 11. Bd2 {[%emt 0:01:37]} O-O {[%emt 0:04:28]} 12. Rae1 {[%emt 0:03:20]} e5 {[%emt 0:00:58]} 13. f5 {[%emt 0:14:21]} b5 {[%emt 0:03:04]} 14. Nd5 {[%emt 0:07:21]} Bd8 {[%emt 0:07:41]} 15. Kh1 {[%emt 0:10:33]} Bb7 {[%emt 0:01:15]} 16. c4 {[%emt 0:10:57]} bxc4 {[%emt 0:06:21]} 17. Bxc4 {[%emt 0:00:08]} Nxd5 {[%emt 0:00:31]} 18. exd5 {[%emt 0:06:39]} Qd7 {[%emt 0:01:41]} 19. f6 {[%emt 0:03:58]} Bxf6 {[%emt 0:02:51]} 20. Rxf6 {[%emt 0:00:18]} gxf6 {[%emt 0:00:04]} 21. Qh5 {[%emt 0:01:34]} Qe7 {[%emt 0:06:18]} 22. Bh6 {[%emt 0:03:08]} Kh8 {[%emt 0:02:03]} 23. Bd3 {[%emt 0:01:35]} f5 {[%emt 0:00:42]} 24. Bxf5 {[%emt 0:05:54]} f6 {[%emt 0:01:22]} 25. Bxf8 {[%emt 0:01:48]} Rxf8 {[%emt 0:00:05]} 26. Be4 {[%emt 0:01:29]} f5 {[%emt 0:01:20]} 27. Bxf5 {[%emt 0:02:18]} Bxd5 {[%emt 0:01:27]} 28. Bh3 {[%emt 0:01:19]} Bxa2 {[%emt 0:06:04]} 29. Qe2 {[%emt 0:03:03]} Qf7 {[%emt 0:03:47]} 30. Qxa6 {[%emt 0:03:48]} Bc4 {[%emt 0:02:15]} 31. Qa1 {[%emt 0:00:31]} Qf2 {[%emt 0:06:43]} 32. Rg1 {[%emt 0:01:05]} Bb5 {[%emt 0:00:19]} 33. b3 {[%emt 0:01:23]} Qe3 {[%emt 0:08:17]} 34. Be6 {[%emt 0:01:45]} Bc6 {[%emt 0:00:34]} 35. Qd1 {[%emt 0:00:37]} d5 {[%emt 0:03:37]} 36. Rf1 {[%emt 0:01:37]} Rf2 {[%emt 0:02:22]} 37. Re1 {[%emt 0:02:10]} Qg5 {[%emt 0:04:51]} 38. Bxd5 {[%emt 0:00:45]} Rd2 {[%emt 0:00:34]} 39. Bxc6 {[%emt 0:00:24]} Rxd1 {[%emt 0:01:06]} 40. Rxd1 {[%emt 0:00:00]} Qe3 {[%emt 0:04:28]} 41. Bd5 {[%emt 0:05:59]} Kg7 {[%emt 0:04:51]} 42. h3 {[%emt 0:00:45]} e4 {[%emt 0:03:33]} 43. Bxe4 {[%emt 0:05:14]} Qxe4 {[%emt 0:00:16]} 44. Rf1 {[%emt 0:00:04]} Kg6 {[%emt 0:00:30]} 45. Rf3 {[%emt 0:00:09]} Qe1+ {[%emt 0:00:14]} 46. Kh2 {[%emt 0:00:05]} h5 {[%emt 0:00:18]} 47. h4 {[%emt 0:02:07]} Qxh4+ {[%emt 0:00:22]} 48. Rh3 {[%emt 0:00:09]} Qe1 {[%emt 0:00:31]} 49. Rf3 {[%emt 0:00:23]} Kg5 {[%emt 0:00:18]} 50. Rh3 {[%emt 0:00:20]} Kg4 {[%emt 0:02:04]} 51. Rf3 {[%emt 0:00:09]} h4 {[%emt 0:01:17]} 52. Rh3 {[%emt 0:00:05]} Qe5+ {[%emt 0:00:40]} 53. Kh1 {[%emt 0:00:30]} Qe1+ {[%emt 0:00:13]} 54. Kh2 {[%emt 0:00:04]} Qe5+ {[%emt 0:00:06]} 55. Kh1 {[%emt 0:00:04]} Qe1+ {[%emt 0:00:07]} 1/2-1/2

[Event "EIWCC 2018"]
[Site "Vysoke Tatry"]
[Date "2018.04.10"]
[Round "3"]
[White "Cibickova, Zuzana"]
[Black "Mrvova, Alena"]
[Result "1/2-1/2"]
[ECO "A04"]
[WhiteElo "2327"]
[BlackElo "2179"]
[Annotator "NA"]
[PlyCount "68"]
[EventDate "2018.??.??"]
[EventType "swiss"]
[EventCountry "SVK"]
[SourceTitle "playchess.com"]
[Source "ChessBase"]
[SourceQuality "1"]
[TimeControl "40/5400+30:1800+30"]

1. Nf3 {[%emt 0:00:00]} b6 {[%emt 0:03:16]} 2. e4 {[%emt 0:08:44]} c5 {[%emt 0:00:59]} 3. d4 {[%emt 0:00:52]} cxd4 {[%emt 0:02:08]} 4. Nxd4 {[%emt 0:00:05]} Bb7 {[%emt 0:02:42]} 5. Nc3 {[%emt 0:01:00]} Nc6 {[%emt 0:00:45]} 6. Be3 {[%emt 0:05:05]} g6 {[%emt 0:08:11]} 7. Nxc6 {[%emt 0:20:40]} dxc6 {[%emt 0:08:11]} 8. Bd4 {[%emt 0:03:32]} f6 {[%emt 0:05:57]} 9. Bc4 {[%emt 0:09:05]} Bg7 {[%emt 0:10:02]} 10. O-O {[%emt 0:10:14]} Nh6 {[%emt 0:02:15]} 11. f4 {[%emt 0:02:54]} Nf7 {[%emt 0:06:54]} 12. Be3 {[%emt 0:04:46]} Qxd1 {[%emt 0:04:20]} 13. Rfxd1 {[%emt 0:00:17]} Nd6 {[%emt 0:00:08]} 14. Be2 {[%emt 0:02:19]} O-O {[%emt 0:01:32]} 15. b3 {[%emt 0:08:27]} Rfd8 {[%emt 0:07:38]} 16. Bf3 {[%emt 0:00:47]} Nb5 {[%emt 0:14:12]} 17. Rxd8+ {[%emt 0:02:54]} Rxd8 {[%emt 0:00:05]} 18. Rd1 {[%emt 0:00:46]} Rxd1+ {[%emt 0:02:56]} 19. Nxd1 {[%emt 0:00:00]} c5 {[%emt 0:00:57]} 20. c3 {[%emt 0:03:28]} Kf7 {[%emt 0:03:40]} 21. Kf1 {[%emt 0:02:33]} Nd6 {[%emt 0:02:28]} 22. Nf2 {[%emt 0:00:09]} Nb5 {[%emt 0:00:08]} 23. Bd2 {[%emt 0:01:05]} Bh6 {[%emt 0:00:54]} 24. Ng4 {[%emt 0:04:05]} Bg7 {[%emt 0:00:11]} 25. Nf2 {[%emt 0:00:15]} Bc6 {[%emt 0:02:03]} 26. Ke2 {[%emt 0:01:48]} e6 {[%emt 0:01:33]} 27. Kd3 {[%emt 0:00:57]} Ke7 {[%emt 0:00:42]} 28. Be3 {[%emt 0:00:27]} Kd7 {[%emt 0:01:19]} 29. a4 {[%emt 0:02:56]} Nd6 {[%emt 0:00:58]} 30. a5 {[%emt 0:00:03]} Bb5+ {[%emt 0:00:59]} 31. Kc2 {[%emt 0:01:22]} Bc6 {[%emt 0:01:29]} 32. Kd3 {[%emt 0:00:16]} Bb5+ {[%emt 0:00:08]} 33. Kc2 {[%emt 0:02:45]} Bc6 {[%emt 0:00:14]} 34. Kd3 {[%emt 0:00:14]} Bb5+ {[%emt 0:00:19]} 1/2-1/2

[Event "EIWCC 2018"]
[Site "Vysoke Tatry"]
[Date "2018.04.10"]
[Round "3"]
[White "Babiy, Olga"]
[Black "Vidic, Teja"]
[Result "1-0"]
[ECO "C70"]
[WhiteElo "2318"]
[BlackElo "2176"]
[Annotator "NA"]
[PlyCount "63"]
[EventDate "2018.??.??"]
[EventType "swiss"]
[EventCountry "SVK"]
[SourceTitle "playchess.com"]
[Source "ChessBase"]
[SourceQuality "1"]
[TimeControl "40/5400+30:1800+30"]

1. e4 {[%emt 0:00:00]} e5 {[%emt 0:00:04]} 2. Nf3 {[%emt 0:00:00]} Nc6 {[%emt 0:00:04]} 3. Bb5 {[%emt 0:00:00]} a6 {[%emt 0:00:10]} 4. Ba4 {[%emt 0:00:00]} b5 {[%emt 0:00:04]} 5. Bb3 {[%emt 0:00:00]} g6 {[%emt 0:00:04]} 6. c3 Bg7 {[%emt 0:00:10]} 7. d4 {[%emt 0:00:31]} exd4 {[%emt 0:00:04]} 8. cxd4 {[%emt 0:00:06]} Na5 {[%emt 0:00:06]} 9. d5 {[%emt 0:10:27]} Nxb3 {[%emt 0:03:14]} 10. Qxb3 {[%emt 0:00:16]} d6 {[%emt 0:04:13]} 11. O-O {[%emt 0:03:06]} Ne7 {[%emt 0:06:16]} 12. Bd2 {[%emt 0:04:01]} O-O {[%emt 0:02:27]} 13. Bc3 {[%emt 0:00:45]} c5 {[%emt 0:09:34]} 14. dxc6 {[%emt 0:01:09]} Be6 {[%emt 0:00:14]} 15. Qa3 {[%emt 0:04:31]} Bxc3 {[%emt 0:05:09]} 16. Nxc3 {[%emt 0:00:30]} Nxc6 {[%emt 0:01:33]} 17. Nd5 {[%emt 0:00:21]} Bxd5 {[%emt 0:07:30]} 18. exd5 {[%emt 0:00:09]} Na5 {[%emt 0:01:42]} 19. b3 {[%emt 0:04:50]} Rb8 {[%emt 0:17:18]} 20. Nd4 {[%emt 0:04:45]} b4 {[%emt 0:01:24]} 21. Qa4 {[%emt 0:06:06]} Qb6 {[%emt 0:01:19]} 22. Rfd1 {[%emt 0:00:12]} Nb7 {[%emt 0:01:39]} 23. Qd7 {[%emt 0:02:44]} Nc5 {[%emt 0:00:58]} 24. Qg4 {[%emt 0:00:49]} Rbe8 {[%emt 0:04:04]} 25. Nc6 {[%emt 0:20:31]} Re4 {[%emt 0:14:34]} 26. Qg3 {[%emt 0:00:11]} Nb7 {[%emt 0:02:54]} 27. Re1 {[%emt 0:01:55]} Rfe8 {[%emt 0:00:44]} 28. Rxe4 {[%emt 0:00:14]} Rxe4 {[%emt 0:00:03]} 29. Qf3 {[%emt 0:00:12]} Re8 {[%emt 0:00:46]} 30. Qf6 {[%emt 0:03:59]} Re2 {[%emt 0:02:02]} 31. Ne7+ {[%emt 0:03:30]} Kf8 {[%emt 0:00:34]} 32. Nc8 {[%emt 0:00:16]} 1-0